Cogmind - Beta 9.5 --- EXPLORER MODE // 2020.04.04 @ 01:23:22 // Winter2019/RPGLIKE Player: hemo Result: Destroyed by Lightning with EMDS Performance ------------- Evolutions (5) 2500 Regions Visited (20) 4000 Robots Destroyed (668) 3340 Value Destroyed (25796) 25796 Prototype IDs (125) 2500 Alien Tech Used (0) 0 Bonus (-494) -494 TOTAL SCORE: 37642 Bonus ------- High Alert Combat Kills 1219 Follower Combat Kills 1227 Entered Garrisons 200 Used RIF Installer 500 Network Hubs Disabled 200 Met R17 at Cetus 500 Friendly Fire -4340 Cogmind --------- Core Integrity 0/1000 Matter 7/600 Energy 350/350 System Corruption 23% Temperature Cool (0) Movement Treading (165) Location -5/Hub_04(d) Parts ------- > --- POWER (1) -------- Quantum Reactor > --- PROPULSION (3) --- Armored Medium Treads Heavy Treads > --- UTILITY (4) ------ Advanced Terrain Scanner Improved Core Analyzer Improved Kinecellerator Medium Reactive Plating > --- WEAPON (7) ------- Disruptor Cannon Tri-rail Accelerator Tri-rail Accelerator Tri-rail Accelerator > --- INVENTORY (5) ---- Centrium Medium Armor Plating Improved Datajack Phasing Sabre Peak State ------------ > --- POWER ------------ F-cell Engine > --- PROPULSION ------- Armored Medium Treads Heavy Treads > --- UTILITY ---------- Advanced Terrain Scanner Improved Core Analyzer Improved Kinecellerator Centrium Medium Armor Plating > --- WEAPON ----------- Disruptor Cannon Tri-rail Accelerator Tri-rail Accelerator Tri-rail Accelerator > --- INVENTORY -------- Medium Reactive Plating Enhanced Gauss Cannon Long-range Missile Launcher Improved Datajack Phasing Sabre [Rating: 98] Favorites ----------- Power F-cell Engine Engine F-cell Engine Power Core Light Nuclear Core Reactor Quantum Reactor Propulsion Heavy Treads Treads Heavy Treads Hover Unit Aerolev Unit Flight Unit Improved VTOL Module Utility Advanced Terrain Scanner Device Advanced Terrain Scanner Storage Medium Matter Pod Processor Advanced Targeting Computer Protection Medium Reactive Plating Weapon Gauss Cannon Energy Gun Particle Gun Energy Cannon Heavy Plasma Cannon Ballistic Gun Enhanced Autogun Ballistic Cannon Gauss Cannon Launcher Improved Grenade Launcher Impact Weapon Great Maul Slashing Weapon Chainsword Piercing Weapon Heavy Pick Special Melee Weapon Improved Datajack Build | -11 -10 -10 -10 -9 -8 -8 -7 -7 -7 -7 -6 -6 -6 -6 -5 -5 -5 -5 -5 -5 ------- Run | Scr Mat Min Exi Min Mat Sto Fac Was Fac Gar Fac Low Low Zio Pro Fac Ext Cet Arc Hub Slots Evolved 11 | 3 1 . . 1 2 . . . 1 . 1 . . . . 1 . 1 . . Power . | . . . . . . . . . . . . . . . . . . . . . Propulsion 2 | 1 . . . . . . . . . . . . . . . 1 . . . . Utility 3 | 1 1 . . 1 . . . . . . . . . . . . . . . . Weapon 6 | 1 . . . . 2 . . . 1 . 1 . . . . . . 1 . . Parts Attached 258 | 8 18 4 3 5 30 14 18 2 50 8 56 2 5 3 2 15 1 10 . 4 Power 14 | 1 3 1 . 1 1 1 1 . 3 . 1 . . . . . . 1 . . Engine 9 | 1 2 . . . . 1 1 . 3 . 1 . . . . . . . . . Core 4 | . 1 1 . 1 1 . . . . . . . . . . . . . . . Reactor 1 | . . . . . . . . . . . . . . . . . . 1 . . Propulsion 24 | 2 4 . . 1 10 . 2 1 2 . . . . . . 1 1 . . . Treads 20 | 2 4 . . 1 7 . 2 1 1 . . . . . . 1 1 . . . Leg . | . . . . . . . . . . . . . . . . . . . . . Wheel . | . . . . . . . . . . . . . . . . . . . . . Hover 3 | . . . . . 2 . . . 1 . . . . . . . . . . . Flight 1 | . . . . . 1 . . . . . . . . . . . . . . . Utility 62 | 3 5 3 . 2 8 1 . . 8 . 15 2 3 . . 10 . 2 . . Device 27 | 1 2 2 . 1 4 . . . 6 . 5 1 1 . . 4 . . . . Storage 1 | . 1 . . . . . . . . . . . . . . . . . . . Processor 9 | 1 . . . 1 1 . . . . . 5 . 1 . . . . . . . Hackware . | . . . . . . . . . . . . . . . . . . . . . Protection 25 | 1 2 1 . . 3 1 . . 2 . 5 1 1 . . 6 . 2 . . Artifact . | . . . . . . . . . . . . . . . . . . . . . Weapon 158 | 2 6 . 3 1 11 12 15 1 37 8 40 . 2 3 2 4 . 7 . 4 Energy Gun 5 | . 1 . . . . . . . 2 . 1 . 1 . . . . . . . Energy Cannon 48 | . . . . . 2 . 4 . 12 4 20 . . . . 1 . 3 . 2 Ballistic Gun 19 | 2 3 . . . 4 7 3 . . . . . . . . . . . . . Ballistic Cannon 27 | . 1 . 1 1 1 1 4 . 7 . 5 . . 2 1 2 . 1 . . Launcher 8 | . . . . . . . 1 1 . 1 1 . . 1 . . . 2 . 1 Special Weapon . | . . . . . . . . . . . . . . . . . . . . . Impact Weapon 3 | . . . . . . 1 . . 1 . . . . . . . . . . 1 Slashing Weapon 9 | . . . . . . . . . 2 2 4 . . . . . . 1 . . Piercing Weapon 1 | . . . . . . . . . . . . . . . . 1 . . . . Special Melee Weapon 38 | . 1 . 2 . 4 3 3 . 13 1 9 . 1 . 1 . . . . . Unidentified Prototypes 10 | . . 1 . . 2 . . . 1 . 4 . . . . 1 . 1 . . Parts Lost 1 | . . . . . . . . . . . . . . . . . . . . 1 Power . | . . . . . . . . . . . . . . . . . . . . . Propulsion . | . . . . . . . . . . . . . . . . . . . . . Utility . | . . . . . . . . . . . . . . . . . . . . . Weapon 1 | . . . . . . . . . . . . . . . . . . . . 1 Highest Loss Streak 1 | . . . . . . . . . . . . . . . . . . . . 1 Average Slot Usage (%) 91 | . 99 100 100 99 99 99 99 93 90 91 91 92 91 92 92 80 78 76 73 72 Engine 5 | . 3 . . . . 7 9 9 8 8 7 7 7 7 7 7 7 6 . . Core 2 | . 9 12 12 11 9 1 . . . . . . . . . . . . . . Treads 12 | . 26 25 25 23 18 18 18 11 8 8 7 7 7 7 7 8 14 13 13 13 Device 13 | . 16 12 12 16 18 18 18 18 16 16 10 7 10 7 7 10 14 13 13 13 Storage 1 | . 2 12 12 8 . . . . . . . . . . . . . . . . Processor 9 | . . . . 2 9 9 9 9 8 8 13 15 15 15 15 10 7 6 6 6 Protection 8 | . 13 11 12 11 8 8 9 9 8 8 7 6 3 7 7 6 7 6 6 6 Energy Cannon 11 | . . . . . 7 9 8 . 11 24 20 23 23 19 15 9 7 5 6 5 Ballistic Gun 5 | . 16 12 12 7 8 10 12 9 7 . . . . . . . . . . . Ballistic Cannon 17 | . 5 12 11 15 18 15 13 18 18 16 18 15 15 18 24 22 21 20 20 20 Special Melee Weapon 1 | . . . . . . . . . 1 . 2 7 6 5 5 2 . . . . Naked Turns . | . . . . . . . . . . . . . . . . . . . . . Heaviest Build 100 | 11 20 20 20 29 37 41 47 47 71 71 78 76 76 84 86 86 86 100 100 100 Greatest Support 105 | 40 40 40 40 40 43 40 48 70 70 70 75 75 75 75 75 105 105 102 102 102 Greatest Overweight (x) 3 | 2 3 . . . 1 1 1 . 1 1 1 1 1 1 1 1 . . . . Average Overweight (x) . | . . . . . . . . . . . . . . 1 1 . . . . . Largest Inventory Capacity 5 | 1 1 1 1 1 2 2 3 3 4 4 5 5 5 5 5 5 5 5 5 5 Average Capacity 3 | . 1 1 1 1 1 2 2 3 3 4 4 5 5 5 5 5 5 5 5 5 Most Carried 5 | . 1 1 1 1 2 2 3 3 4 4 5 3 5 5 5 5 5 5 5 5 Average Carried 3 | . . 1 1 1 1 1 2 3 3 4 3 3 3 4 4 4 5 4 5 4 Final Capacity 5 | 1 1 1 1 1 2 2 3 3 4 4 5 5 5 5 5 5 5 5 5 5 Final Carried 5 | . 1 1 1 1 2 2 3 3 4 4 3 3 4 4 5 5 5 5 5 3 Class Distribution -------------------- 41% | Hacker-Gunner 25% | Hacker-Assassin 16% | Hacker-Executioner 11% | Hacker-Skirmisher 4% | Hacker-Mutant Dominant Class ---------------- Hacker-Skirmisher | -10/Materials Hacker-Skirmisher | -10/Mines Hacker-Mutant | -10/Exiles Hacker-Skirmisher | -9/Mines Hacker-Gunner | -8/Materials Hacker-Gunner | -8/Storage Hacker-Gunner | -7/Factory Hacker-Mutant | -7/Waste Hacker-Gunner | -7/Factory Hacker-Gunner | -7/Garrison Hacker-Gunner | -6/Factory Hacker-Assassin | -6/Lower Caves Hacker-Assassin | -6/Lower Caves Hacker-Assassin | -6/Zion Hacker-Assassin | -5/Proximity Caves Hacker-Executioner | -5/Factory Hacker-Executioner | -5/Extension Hacker-Executioner | -5/Cetus Hacker-Executioner | -5/Archives Hacker-Executioner | -5/Hub_04(d) Resources | -11 -10 -10 -10 -9 -8 -8 -7 -7 -7 -7 -6 -6 -6 -6 -5 -5 -5 -5 -5 -5 ----------- Run | Scr Mat Min Exi Min Mat Sto Fac Was Fac Gar Fac Low Low Zio Pro Fac Ext Cet Arc Hub Matter Collected 16175 | 298 410 513 . 159 1710 912 1144 378 3031 476 2208 122 146 . 1222 1145 610 1124 96 471 Remotely . | . . . . . . . . . . . . . . . . . . . . . Salvage Created 23928 | 132 745 194 . 91 1913 1123 1993 632 3861 794 4495 255 127 273 1508 2291 1017 924 348 1212 Parts 1200 | 7 50 10 . 13 148 72 115 10 196 42 194 8 10 3 56 100 42 48 1 75 Haulers Intercepted 37 | . 2 . . . 6 6 4 . 8 . 5 . . . . 4 . . . 2 Recyclers Shooed 6 | . 2 . . . . . . . . . 4 . . . . . . . . . Parts Field Recycled . | . . . . . . . . . . . . . . . . . . . . . Retrieved Matter . | . . . . . . . . . . . . . . . . . . . . . Parts Self-Destructed . | . . . . . . . . . . . . . . . . . . . . . Prevented . | . . . . . . . . . . . . . . . . . . . . . Kills | -11 -10 -10 -10 -9 -8 -8 -7 -7 -7 -7 -6 -6 -6 -6 -5 -5 -5 -5 -5 -5 ------- Run | Scr Mat Min Exi Min Mat Sto Fac Was Fac Gar Fac Low Low Zio Pro Fac Ext Cet Arc Hub Combat Hostiles Destroyed 460 | . 12 19 . 4 42 22 36 6 80 23 65 4 5 4 29 38 14 26 4 27 Guns 46 | . 8 7 . 3 9 4 4 . 11 . . . . . . . . . . . Cannons 391 | . 4 12 . 1 32 18 32 4 67 15 63 4 5 3 29 34 14 25 4 25 AOE 23 | . . . . . 1 . . 2 2 8 2 . . 1 . 4 . 1 . 2 Classes Destroyed 23 | 3 5 1 . 1 4 1 1 2 2 . 3 . . . . . . . . . Worker 40 | 1 7 . . . 8 3 2 . 5 . 7 . . . . 3 . . . 4 Builder 31 | . 1 1 . 1 6 . 3 . 2 . 9 . . . . 1 3 . . 4 Tunneler 4 | 1 . 1 . . . . 1 . . . 1 . . . . . . . . . Hauler 37 | . 2 . . . 6 6 4 . 8 . 5 . . . . 4 . . . 2 Recycler 21 | 1 1 . . . 3 1 1 . 6 . 5 . . . . 1 1 . . 1 Carrier 2 | . . . . . . . . . . . 2 . . . . . . . . . Operator 10 | . . . . . 1 . 1 . 3 . 3 . . . . 2 . . . . Drone 6 | . . . . . . 2 1 . . . . . . . . 3 . . . . Watcher 42 | . 3 . . . 4 2 4 . 8 . 6 . . . . 7 1 2 . 5 Swarmer 74 | . 6 2 . 2 10 8 3 . 7 7 7 . . . 9 1 . 4 . 8 Saboteur 1 | . . . . . . . . . . . 1 . . . . . . . . . Grunt 194 | . 6 3 . 3 20 10 20 . 44 8 31 2 3 . 12 18 1 8 . 5 Brawler 13 | . . . . . . . . 2 2 . 1 . . . 3 2 . 3 . . Duelist 10 | . . . . . 1 . 3 . 4 . . . . . 2 . . . . . Protector 2 | . . . . . . . . . 1 1 . . . . . . . . . . Sentry 61 | . . . . . 10 5 4 . 12 4 9 1 . . 1 5 3 . 4 3 Demolisher 3 | . . . . . . . . . 2 1 . . . . . . . . . . Hunter 37 | . . . . . 1 . 2 . 4 2 10 1 . . 3 3 7 2 . 2 Programmer 37 | . . . . . . . 3 . 7 . 8 . 2 . 1 10 1 1 . 4 Behemoth 4 | . . . . . . . . . . . 1 . . . . 1 2 . . . Compactor 6 | . . . . . . . . 6 . . . . . . . . . . . . Cetus Guard 8 | . . . . . . . . . . . . . . . . . . 8 . . Lightning 5 | . . . . . . . . . . . . . . . . . . . . 5 Zionite 1 | . . . . 1 . . . . . . . . . . . . . . . . Assembled 14 | . . 14 . . . . . . . . . . . . . . . . . . Thug 1 | . . . . . . . . . . . . . . 1 . . . . . . Guerrilla 1 | . . . . . . . . . . . . . . . . . 1 . . . Marauder 2 | . . . . . . . . . . . . . . 2 . . . . . . Best Kill Streak 16 | 1 5 7 . 2 15 9 5 2 11 16 8 3 2 2 7 8 11 7 3 11 Combat Bots Only 16 | . 2 7 . 2 6 6 4 2 5 16 6 3 2 2 7 4 7 7 3 8 Max Kills in Single Turn 4 | 1 2 1 . 1 4 2 2 2 3 4 3 1 1 1 2 3 3 2 1 3 Gunslinging . | . . . . . . . . . . . . . . . . . . . . . Exploded 4 | . . . . . 1 . . 1 2 4 1 . . 1 . 2 . 1 . 1 Melee . | . . . . . . . . . . . . . . . . . . . . . Uniques/NPCs Destroyed 1 | . . . . . . . . . . . . . . 1 . . . . . . CL-ANK (-6/Zion) Combat | -11 -10 -10 -10 -9 -8 -8 -7 -7 -7 -7 -6 -6 -6 -6 -5 -5 -5 -5 -5 -5 -------- Run | Scr Mat Min Exi Min Mat Sto Fac Was Fac Gar Fac Low Low Zio Pro Fac Ext Cet Arc Hub Damage Taken 9086 | . 669 489 . 76 378 673 243 73 1061 368 1088 28 64 447 607 331 354 611 41 1485 Core 6404 | . 489 363 . 55 261 481 177 47 734 245 717 18 50 325 418 256 245 427 31 1065 Absorbed by Shields . | . . . . . . . . . . . . . . . . . . . . . Reduced by Siege Mode 32 | . . . . . . . . . . . . . . . . . 1 10 . 21 Redirected to Core 5553 | . 387 250 . 46 223 289 155 47 651 196 634 18 50 317 387 218 231 392 31 1031 Core Remaining (%) 89 | 100 . . . 100 . 78 . . . 69 . . . . 100 . . . . . Volleys Fired 970 | 9 90 56 . 14 81 54 70 24 169 24 132 4 8 13 40 65 23 48 4 42 Largest 6 | 2 2 2 . 2 4 4 4 4 5 5 5 5 5 6 6 5 4 4 4 4 Hottest 395 | 40 85 55 . 83 183 183 201 157 306 306 371 362 362 377 395 338 258 261 261 261 Shots Fired 3574 | 18 146 112 . 24 304 216 261 83 718 104 596 20 37 70 206 265 87 141 14 152 Gun 644 | 18 131 56 . 9 80 56 98 22 174 . . . . . . . . . . . Cannon 2883 | . 15 56 . 15 224 160 163 44 544 96 596 20 37 65 206 265 87 130 14 146 Launcher 47 | . . . . . . . . 17 . 8 . . . 5 . . . 11 . 6 Special . | . . . . . . . . . . . . . . . . . . . . . Kinetic 2542 | 18 136 112 . 24 242 162 210 66 510 44 324 8 16 39 126 195 69 111 12 118 Thermal 783 | . 10 . . . 62 54 51 . 200 52 256 8 14 13 40 23 . . . . Explosive 47 | . . . . . . . . 17 . 8 . . . 5 . . . 11 . 6 Electromagnetic 202 | . . . . . . . . . 8 . 16 4 7 13 40 47 18 19 2 28 Robot Hit Streak 75 | 6 37 31 . 20 33 38 75 21 58 24 42 46 29 34 42 46 70 53 43 53 Robot Miss Streak 3 | 2 2 2 . 1 1 1 2 1 3 2 2 1 1 1 1 2 1 1 1 1 Penetration Max 1 | . . . . . 1 . . . 1 . 1 . . . 1 1 . . . . Secondary Targets . | . . . . . . . . . . . . . . . . . . . . . Shots Hit Robots 2477 | 11 115 82 1 18 201 149 182 68 488 63 382 14 29 58 144 187 69 99 13 104 Core Hits 1124 | 6 50 35 . 9 97 47 82 21 172 39 162 6 9 11 61 107 42 63 15 90 Critical Hits 162 | . 1 . . 1 6 4 9 5 13 2 26 4 5 16 21 33 7 7 . 2 Critical Kills 57 | . 1 . . . 3 1 2 2 8 1 7 3 1 1 9 14 2 1 . 1 Critical Parts Destroyed 82 | . . . . 1 3 3 7 1 5 1 16 1 3 5 11 16 4 4 . 1 Melee Attacks 46 | . . . 1 . . 18 . . 6 3 8 1 1 . 3 . . 5 . . Impact 18 | . . . . . . 18 . . . . . . . . . . . . . . Slashing 17 | . . . . . . . . . 4 3 5 . . . . . . 5 . . Piercing . | . . . . . . . . . . . . . . . . . . . . . Sneak Attacks 12 | . . . . . . . . . 2 . 5 1 1 . 3 . . . . . Combat Hostiles 2 | . . . . . . . . . . . 1 . 1 . . . . . . . Follow-up Attacks . | . . . . . . . . . . . . . . . . . . . . . Damage Inflicted 83617 | 109 1274 1080 . 285 5324 4063 5078 3335 14074 2562 13659 428 819 1387 3798 8984 3964 5514 1104 6776 Guns 8622 | 109 911 526 . 97 1277 1008 1501 455 2738 . . . . . . . . . . . Cannons 67578 | . 136 554 . 188 3785 3055 3319 1326 10720 1628 12507 428 819 1129 3798 8488 3667 5378 1104 5549 Explosions 7155 | . 227 . . . 262 . 258 1554 588 934 929 . . 258 . 496 297 136 . 1216 Melee 223 | . . . . . . . . . . . 223 . . . . . . . . . Ramming 39 | . . . . . . . . . 28 . . . . . . . . . . 11 Kinetic 54869 | 109 895 1080 . 285 3704 2690 3753 1781 8807 629 6163 168 303 696 1938 7060 3404 5099 1076 5229 Thermal 20243 | . 379 . . . 1444 1373 1067 . 4695 999 6522 186 449 365 1274 887 297 136 . 170 Explosive 5161 | . . . . . . . 204 1554 345 934 531 . . 258 . 289 . . . 1046 Electromagnetic 3082 | . . . . . 176 . 54 . 199 . 220 74 67 68 586 748 263 279 28 320 Impact . | . . . . . . . . . . . . . . . . . . . . . Slashing 223 | . . . . . . . . . . . 223 . . . . . . . . . Piercing . | . . . . . . . . . . . . . . . . . . . . . Highest Corruption 23 | . 1 1 1 1 . . 1 1 2 . 1 1 1 . . . . . . 23 Average Corruption 1 | . 1 1 1 1 . . 1 1 1 . 1 1 1 . . . . . . 15 Corruption Purged 4 | . . . . . . . . . 2 . . 1 1 . . . . . . . Effects 92 | . 1 8 2 3 . . 9 3 54 . 3 4 1 . . . . . . 4 Message Errors 20 | . . 4 . . . . . 1 12 . 2 1 . . . . . . . . Heat Flow Errors 9 | . . . . . . . . . 8 . . . . . . . . . . 1 Energy Discharges 16 | . . 2 1 2 . . 2 . 8 . . . 1 . . . . . . . Data Loss (minor) 22 | . 1 1 1 1 . . 2 1 10 . 1 3 . . . . . . . 1 Targeting Errors 23 | . . 1 . . . . 4 1 15 . . . . . . . . . . 2 Weapon Failures 2 | . . . . . . . 1 . 1 . . . . . . . . . . . Overload Shots . | . . . . . . . . . . . . . . . . . . . . . Overflow Damage 3250 | . 64 8 . . 231 108 128 . 764 107 674 5 78 . 115 449 106 133 1 279 Projectiles 2872 | . . 8 . . 185 108 128 . 686 99 516 5 78 . 115 441 106 133 1 263 Explosions 378 | . 64 . . . 46 . . . 78 8 158 . . . . 8 . . . 16 Melee . | . . . . . . . . . . . . . . . . . . . . . Knockbacks 188 | . . 12 . 2 16 11 6 . 30 1 23 . 1 . 4 26 15 17 . 24 Impact . | . . . . . . . . . . . . . . . . . . . . . Kinetic 174 | . . 11 . 2 15 8 6 . 29 1 23 . 1 . 4 21 15 16 . 22 Secondary 14 | . . 1 . . 1 3 . . 1 . . . . . . 5 . 1 . 2 Self-Inflicted Damage 767 | . 107 . . . 50 . 4 76 143 18 187 . . 4 . . 80 22 . 76 Shots 28 | . 3 . . . 1 . 1 5 5 1 5 . . 1 . . 2 2 . 2 Rammed 3 | . . . . . . . . . 2 . . . . . . . . . . 1 Targets Rammed 3 | . . . . . . . . . 2 . . . . . . . . . . 1 Kicked . | . . . . . . . . . . . . . . . . . . . . . Crushed . | . . . . . . . . . . . . . . . . . . . . . Highest Temperature 467 | 12 235 . . . 467 4 35 . 185 102 284 174 174 126 206 144 21 33 3 54 Average Temperature 55 | 5 74 . . . 98 2 6 . 35 28 53 97 65 39 71 58 15 15 2 3 Received Heat Transfer 3073 | . 276 175 . 78 198 288 171 . 597 54 483 9 9 . 327 144 21 198 18 27 Effects 7 | . 3 . . . 4 . . . . . . . . . . . . . . . Energy Bleed 2 | . . . . . 2 . . . . . . . . . . . . . . . Interference 4 | . 3 . . . 1 . . . . . . . . . . . . . . . Short Circuit 1 | . . . . . 1 . . . . . . . . . . . . . . . Siege Activations 16 | . . . . . . . . . . . . . . . . 3 1 5 2 5 Total Turns 177 | . . . . . . . . . . . . . . . . 10 4 60 13 90 Longest Duration 47 | . . . . . . . . . . . . . . . . 6 4 19 9 47 Robots Corrupted . | . . . . . . . . . . . . . . . . . . . . . Combat Hostiles . | . . . . . . . . . . . . . . . . . . . . . Parts Fried 5 | . . . . . 1 . 1 . . . . . . . . 2 1 . . . Impact Corruptions 1 | . . . . . . . . . . . . . . . . 1 . . . . Robots Melted . | . . . . . . . . . . . . . . . . . . . . . Combat Hostiles . | . . . . . . . . . . . . . . . . . . . . . Parts Melted 22 | . . . . 1 1 1 . . 5 2 11 . 1 . . . . . . . Heat Transferred 26099 | . 570 . . . 1937 1887 1703 . 6356 1295 8429 250 550 372 1600 850 150 100 . 50 Parts Sabotaged . | . . . . . . . . . . . . . . . . . . . . . Parts Stolen . | . . . . . . . . . . . . . . . . . . . . . Parts Stripped . | . . . . . . . . . . . . . . . . . . . . . Power Chain Reactions 4 | . . . . . . . . . . . . . . . . 2 . 1 . 1 Missiles Intercepted . | . . . . . . . . . . . . . . . . . . . . . Alert | -11 -10 -10 -10 -9 -8 -8 -7 -7 -7 -7 -6 -6 -6 -6 -5 -5 -5 -5 -5 -5 ------- Run | Scr Mat Min Exi Min Mat Sto Fac Was Fac Gar Fac Low Low Zio Pro Fac Ext Cet Arc Hub Peak Influence 984 | 15 269 105 . 167 490 617 270 42 812 984 870 . . . . 759 193 255 135 596 Average Influence 165 | 4 79 20 . 31 119 119 69 23 224 648 261 . . . . 166 59 105 116 121 Maximum Alert Level 3 | . 1 . . . 2 2 1 . 3 3 3 . . . . 3 . 1 . 2 Low Security (%) 86 | 100 96 100 . 100 83 74 90 100 55 10 52 . . . . 73 100 92 100 75 Level 1 11 | . 3 . . . 14 13 9 . 29 12 29 . . . . 23 . 7 . 18 Level 2 1 | . . . . . 2 12 . . 9 10 11 . . . . 2 . . . 5 Level 3 . | . . . . . . . . . 5 67 7 . . . . . . . . . Level 4 . | . . . . . . . . . . . . . . . . . . . . . Level 5 . | . . . . . . . . . . . . . . . . . . . . . High Security . | . . . . . . . . . . . . . . . . . . . . . Max Security . | . . . . . . . . . . . . . . . . . . . . . Squads Dispatched 102 | . 1 . . 1 9 8 12 . 25 . 22 . . . 1 17 2 . . 4 Investigation 37 | . 1 . . 1 4 4 4 . 8 . 6 . . . . 8 1 . . . Extermination 23 | . . . . . . . 3 . 6 . 6 . . . . 6 . . . 2 Reinforcement 28 | . . . . . 5 1 5 . 7 . 4 . . . . 3 1 . . 2 Assault 4 | . . . . . . . . . 1 . 2 . . . 1 . . . . . Garrison 10 | . . . . . . 3 . . 3 . 4 . . . . . . . . . Intercept . | . . . . . . . . . . . . . . . . . . . . . Construction Impeded 3 | . . . . . 1 . . . 2 . . . . . . . . . . . Haulers Reinforced 9 | . . . . . . . 1 . 3 . 4 . . . . . . . . 1 Stealth | -11 -10 -10 -10 -9 -8 -8 -7 -7 -7 -7 -6 -6 -6 -6 -5 -5 -5 -5 -5 -5 --------- Run | Scr Mat Min Exi Min Mat Sto Fac Was Fac Gar Fac Low Low Zio Pro Fac Ext Cet Arc Hub Distress Signals 16 | . . 1 . . 3 1 2 . 1 . 2 . . . . 2 1 . . 3 Communications Jammed . | . . . . . . . . . . . . . . . . . . . . . Distress Signals . | . . . . . . . . . . . . . . . . . . . . . Times Spotted 570 | . 21 25 . 7 55 35 42 5 98 21 82 4 4 5 40 52 13 27 2 32 Peak Tracking Total 12 | . 3 5 . 3 4 6 3 3 6 9 5 3 1 3 8 5 2 5 1 12 Tactical Retreats 28 | . . 4 . . 3 1 6 . 2 2 5 . . 3 1 1 . . . . Traps | -11 -10 -10 -10 -9 -8 -8 -7 -7 -7 -7 -6 -6 -6 -6 -5 -5 -5 -5 -5 -5 ------- Run | Scr Mat Min Exi Min Mat Sto Fac Was Fac Gar Fac Low Low Zio Pro Fac Ext Cet Arc Hub Traps Triggered 33 | . 4 . . . 3 . 10 . 5 5 4 . . . . 2 . . . . Indirectly 2 | . . . . . . . 2 . . . . . . . . . . . . . Trap Hack Attempts 333 | . 2 . . . 43 27 31 . 94 13 101 . . . . 22 . . . . Triggered 1 | . . . . . . . . . 1 . . . . . . . . . . . Disarmed 15 | . . . . . 2 2 1 . 8 . 2 . . . . . . . . . Reprogrammed 81 | . 1 . . . 5 5 5 . 18 3 24 . . . . 3 11 . . 6 Reused 12 | . . . . . . . 1 . 2 . 4 . . . . 1 . . . 4 Traps Extracted . | . . . . . . . . . . . . . . . . . . . . . Installed . | . . . . . . . . . . . . . . . . . . . . . Triggered 13 | . . . . . . . 1 . 2 . 4 . . . . 2 . . . 4 Machines | -11 -10 -10 -10 -9 -8 -8 -7 -7 -7 -7 -6 -6 -6 -6 -5 -5 -5 -5 -5 -5 ---------- Run | Scr Mat Min Exi Min Mat Sto Fac Was Fac Gar Fac Low Low Zio Pro Fac Ext Cet Arc Hub Machines Disabled 131 | . 3 . . 1 9 2 9 . 30 3 36 . . . 1 11 6 3 . 17 Max in Single Turn 9 | . 3 . . . 2 1 2 . 4 1 5 . . . 1 2 4 1 . 9 Garrison Access 4 | . . . . . . . . . 2 . 1 . . . . 1 . . . . Garrison Relay 2 | . . . . . . . . . . 2 . . . . . . . . . . Network Hub 1 | . . . . . . . . . . . . . . . . . . . . 1 Energy Cycler 2 | . . . . . . . . . . . . . . . . . 2 . . . Machines Sabotaged . | . . . . . . . . . . . . . . . . . . . . . Garrisons Compromised . | . . . . . . . . . . . . . . . . . . . . . Overloaded Fab Kills . | . . . . . . . . . . . . . . . . . . . . . Fab Network Shutdowns 2 | . . . . . . . . . 1 . . . . . . 1 . . . . Hacking | -11 -10 -10 -10 -9 -8 -8 -7 -7 -7 -7 -6 -6 -6 -6 -5 -5 -5 -5 -5 -5 --------- Run | Scr Mat Min Exi Min Mat Sto Fac Was Fac Gar Fac Low Low Zio Pro Fac Ext Cet Arc Hub Machines Accessed 165 | . 9 1 1 1 14 19 14 . 23 . 27 . . . . 31 13 5 1 6 Terminals 108 | . 8 1 . . 8 15 11 . 10 . 17 . . . . 15 12 5 . 6 Fabricators 13 | . . . . . . . 1 . 5 . 2 . . . . 5 . . . . Repair Stations 7 | . . . . . 2 1 . . 1 . 2 . . . . 1 . . . . Recycling Units 21 | . 1 . . . 2 2 2 . 4 . 3 . . . . 6 1 . . . Scanalyzers 6 | . . . . . 1 . . . 1 . 2 . . . . 2 . . . . Garrison Access 7 | . . . . . 1 1 . . 2 . 1 . . . . 2 . . . . Total Hacks 856 | . 34 5 5 1 45 115 57 . 112 . 114 . . . . 179 101 44 10 34 Successful 718 | . 30 4 5 1 36 95 36 . 91 . 91 . . . . 160 96 38 10 25 Failed 138 | . 4 1 . . 9 20 21 . 21 . 23 . . . . 19 5 6 . 9 Catastrophic 6 | . . . . . 1 . 2 . 1 . 1 . . . . . . . . 1 Database Lockouts . | . . . . . . . . . . . . . . . . . . . . . Manual 602 | . 26 6 . . 37 93 39 . 60 . 79 . . . . 127 79 40 . 16 Terminals 614 | . 30 5 . . 30 103 46 . 43 . 74 . . . . 108 97 44 . 34 Fabricators 53 | . . . . . . . 4 . 19 . 11 . . . . 19 . . . . Repair Stations 14 | . . . . . 6 2 . . 1 . 2 . . . . 3 . . . . Recycling Units 108 | . 4 . . . 4 6 7 . 32 . 17 . . . . 34 4 . . . Scanalyzers 25 | . . . . . 3 . . . 7 . 6 . . . . 9 . . . . Garrison Access 26 | . . . . . 2 4 . . 10 . 4 . . . . 6 . . . . Terminal Hacks 401 | . 19 3 5 1 16 71 17 . 21 . 37 . . . . 78 79 28 10 16 Record 34 | . . . 5 . 1 . . . . . 1 . . . . 1 8 7 10 1 Part Schematic 42 | . . 1 . . . 15 3 . 1 . 6 . . . . 11 1 . . 4 Robot Schematic 16 | . . . . . . 5 . . 1 . 1 . . . . 6 1 2 . . Robot Analysis 49 | . 9 1 . . 10 1 3 . 5 . 12 . . . . 7 . . . 1 Prototype ID Bank 167 | . 7 1 . . . 40 1 . 2 . 9 . . . . 40 49 14 . 4 Open Door 10 | . . . . 1 . 4 . . . . . . . . . . 4 1 . . Branch Access Points 3 | . . . . . . . . . . . 1 . . . . 2 . . . . Terminal Index 1 | . . . . . . 1 . . . . . . . . . . . . . . Alert Level 4 | . 1 . . . . . . . 3 . . . . . . . . . . . Unreport Threat 34 | . . . . . 3 3 4 . 5 . 4 . . . . 4 3 4 . 4 Locate Traps 5 | . . . . . 1 . . . 1 . . . . . . 1 2 . . . Reprogram Traps 6 | . . . . . . . . . . . . . . . . . 4 . . 2 Dispatch Records 3 | . . . . . . . 2 . . . . . . . . . 1 . . . Maintenance Status 1 | . . . . . . . . . . . . . . . . . 1 . . . Surveillance Status 1 | . . . . . . . . . . . . . . . . . 1 . . . Patrol Status 1 | . . . . . . 1 . . . . . . . . . . . . . . Investigation Status 2 | . 1 . . . . . . . . . . . . . . . 1 . . . Recall Investigation 7 | . . . . . . 1 1 . . . 1 . . . . 2 2 . . . Recall Extermination 1 | . . . . . . . 1 . . . . . . . . . . . . . Recall Reinforcements 6 | . . . . . 1 . 1 . 1 . . . . . . 2 1 . . . Hauler Manifests 6 | . 1 . . . . . 1 . 1 . 2 . . . . 1 . . . . Registered Components 1 | . . . . . . . . . 1 . . . . . . . . . . . Zone Layout 1 | . . . . . . . . . . . . . . . . 1 . . . . Fabricator Hacks 33 | . . . . . . . 2 . 13 . 7 . . . . 11 . . . . Network Status 3 | . . . . . . . . . 1 . . . . . . 2 . . . . Load Schematic 10 | . . . . . . . . . 5 . 3 . . . . 2 . . . . Build 20 | . . . . . . . 2 . 7 . 4 . . . . 7 . . . . Repair Station Hacks 9 | . . . . . 5 2 . . . . . . . . . 2 . . . . Scan Component 5 | . . . . . 3 1 . . . . . . . . . 1 . . . . Repair 4 | . . . . . 2 1 . . . . . . . . . 1 . . . . Recycling Unit Hacks 57 | . 2 . . . 2 4 5 . 18 . 12 . . . . 12 2 . . . Process 13 | . . . . . . . 1 . 7 . 3 . . . . 2 . . . . Report Inventory 27 | . 1 . . . 2 2 2 . 8 . 3 . . . . 8 1 . . . Retrieve Matter 13 | . . . . . . . 2 . 3 . 6 . . . . 2 . . . . Retrieve Components 4 | . 1 . . . . 2 . . . . . . . . . . 1 . . . Scanalyzer 17 | . . . . . 2 . . . 6 . 2 . . . . 7 . . . . Insert Component 8 | . . . . . 1 . . . 3 . 1 . . . . 3 . . . . Analyze 9 | . . . . . 1 . . . 3 . 1 . . . . 4 . . . . Garrison Access Hacks 3 | . . . . . . . . . 2 . . . . . . 1 . . . . Unlock Access 1 | . . . . . . . . . 1 . . . . . . . . . . . Seal Access 2 | . . . . . . . . . 1 . . . . . . 1 . . . . Unauthorized Hacks 429 | . 18 2 . . 22 40 26 . 71 . 70 . . . . 106 31 21 . 22 Terminals 111 | . 8 1 . . 6 14 9 . 10 . 16 . . . . 15 13 10 . 9 Track 3 | . . . . . . . . . . . . . . . . . 1 1 . 1 Assimilate 3 | . . . . . . . . . . . . . . . . 1 . . . 2 Botnet 95 | . 8 1 . . 6 12 9 . 9 . 15 . . . . 14 11 5 . 5 Detonate 2 | . . . . . . . . . . . 1 . . . . . . 1 . . Disrupt 7 | . . . . . . 2 . . 1 . . . . . . . 1 3 . . Operators 1 | . . . . . . . . . . . . . . . . . . . . 1 Fabricators 12 | . . . . . . . 1 . 1 . 3 . . . . 7 . . . . Report 1 | . . . . . . . . . . . . . . . . 1 . . . . Prioritize 4 | . . . . . . . . . . . 1 . . . . 3 . . . . Siphon 6 | . . . . . . . 1 . 1 . 2 . . . . 2 . . . . Haulers 1 | . . . . . . . . . . . . . . . . 1 . . . . Repair Stations 4 | . . . . . . . . . 1 . 2 . . . . 1 . . . . Mechanics 4 | . . . . . . . . . 1 . 2 . . . . 1 . . . . Recycling Units 48 | . 1 . . . 2 2 2 . 14 . 5 . . . . 20 2 . . . Monitor 8 | . . . . . . . . . 3 . 1 . . . . 4 . . . . Reject 4 | . . . . . . . . . 2 . . . . . . 2 . . . . Recyclers 6 | . . . . . . . . . 3 . . . . . . 3 . . . . Mask 9 | . . . . . . . . . 2 . 1 . . . . 5 1 . . . Tunnel 21 | . 1 . . . 2 2 2 . 4 . 3 . . . . 6 1 . . . Scanalyzers 8 | . . . . . 1 . . . 1 . 4 . . . . 2 . . . . Researchers 3 | . . . . . . . . . . . 2 . . . . 1 . . . . Extract 5 | . . . . . 1 . . . 1 . 2 . . . . 1 . . . . Garrison Access 15 | . . . . . 2 2 . . 4 . 3 . . . . 4 . . . . Reprogram 14 | . . . . . 2 2 . . 4 . 3 . . . . 3 . . . . Watchers 1 | . . . . . . . . . . . . . . . . 1 . . . . Data Cores Recovered 6 | . . . . . . . . . 2 . 3 . . . . 1 . . . . Used 3 | . . . . . . . . . . . 3 . . . . . . . . . Hacking Detections 148 | . 9 1 . . 11 17 13 . 21 . 25 . . . . 27 13 5 . 6 Full Trace Events 6 | . 1 . . . 1 2 1 . . . . . . . . 1 . . . . Feedback Events . | . . . . . . . . . . . . . . . . . . . . . Feedback Blocked . | . . . . . . . . . . . . . . . . . . . . . Robot Schematics Acquired 16 | . . . . . . 5 . . 1 . 1 . . . . 6 1 2 . . Robots Built 20 | . . . . . . . 6 . 2 . 6 . . . . 6 . . . . Matter 1946 | . . . . . . . 378 . 438 . 491 . . . . 639 . . . . Time 752 | . . . . . . . 134 . 116 . 274 . . . . 228 . . . . Total Robot Build Rating 78 | . . . . . . . 24 . 6 . 18 . . . . 30 . . . . Part Schematics Acquired 70 | . . 1 . . 3 15 3 . 8 . 19 . . . . 16 1 . . 4 Parts Built 1 | . . . . . . . . . . . 1 . . . . . . . . . Matter 159 | . . . . . . . . . . . 159 . . . . . . . . . Time 53 | . . . . . . . . . . . 53 . . . . . . . . . Total Part Build Rating 6 | . . . . . . . . . . . 6 . . . . . . . . . Parts Repaired 4 | . . . . . 2 1 . . . . . . . . . 1 . . . . Time 164 | . . . . . 76 38 . . . . . . . . . 50 . . . . Parts Recycled . | . . . . . . . . . . . . . . . . . . . . . Recycled Matter 2589 | . . . . . . . 116 . 1148 . 932 . . . . 393 . . . . Retrieved Matter 3800 | . . . . . . . . . 1561 . 1638 . . . . 601 . . . . Retrieved Components 30 | . 10 . . . . 10 . . . . . . . . . . 10 . . . Parts Scanalyzed 8 | . . . . . 1 . . . 3 . 1 . . . . 3 . . . . Part Schematics Acquired 8 | . . . . . 1 . . . 3 . 1 . . . . 3 . . . . Parts Damaged 1 | . . . . . . . . . . . . . . . . 1 . . . . Bothacking | -11 -10 -10 -10 -9 -8 -8 -7 -7 -7 -7 -6 -6 -6 -6 -5 -5 -5 -5 -5 -5 ------------ Run | Scr Mat Min Exi Min Mat Sto Fac Was Fac Gar Fac Low Low Zio Pro Fac Ext Cet Arc Hub Used RIF Installer 1 | . . . . . . . . . . 1 . . . . . . . . . . Robots Hacked 5 | . . . . . . . . . 1 . 3 1 . . . . . . . . Non-combat 4 | . . . . . . . . . 1 . 2 1 . . . . . . . . Combat 1 | . . . . . . . . . . . 1 . . . . . . . . . Robot Hacks Applied 6 | . . . . . . . . . 2 . 3 1 . . . . . . . . parse_system 2 | . . . . . . . . . . . 1 1 . . . . . . . . no_distress 2 | . . . . . . . . . 2 . . . . . . . . . . . ignore_repairs 1 | . . . . . . . . . . . 1 . . . . . . . . . ignore_parts 1 | . . . . . . . . . . . 1 . . . . . . . . . Relay Couplers Released 5 | . . . . . . . . . 1 3 1 . . . . . . . . . Machine Destruction 5 | . . . . . . . . . 1 3 1 . . . . . . . . . Robots Rewired 3 | . . . . . . . . . . . . . 1 . 2 . . . . . Allies Hacked 2 | . . . . . . . . . . . . . . . . 1 1 . . . Hacks Repelled . | . . . . . . . . . . . . . . . . . . . . . Allies | -11 -10 -10 -10 -9 -8 -8 -7 -7 -7 -7 -6 -6 -6 -6 -5 -5 -5 -5 -5 -5 -------- Run | Scr Mat Min Exi Min Mat Sto Fac Was Fac Gar Fac Low Low Zio Pro Fac Ext Cet Arc Hub Total Allies 61 | . . 3 . 2 3 14 6 . 6 . 10 . 1 . 2 13 1 . . . Largest Group 10 | . . 3 3 5 3 10 6 3 3 . 3 . 1 1 2 6 2 . . . Highest-Rated Group 246 | . . 40 40 81 63 173 120 60 68 . 97 . 42 42 58 246 62 . . . Highest-Rated Ally 54 | . . 16 16 31 31 29 20 20 34 . 41 . 42 42 39 54 37 . . . Total Orders 26 | . . . . . . 13 1 . . . . . . . . 12 . . . . STAY 5 | . . . . . . . . . . . . . . . . 5 . . . . GOTO 13 | . . . . . . 12 . . . . . . . . . 1 . . . . FOLLOW 6 | . . . . . . 1 . . . . . . . . . 5 . . . . EXPLORE 2 | . . . . . . . 1 . . . . . . . . 1 . . . . Ally Attacks 388 | . . . . 44 28 83 38 5 18 . 41 . . 22 24 80 5 . . . Total Damage 7668 | . . . . 464 408 884 516 85 650 . 1343 . . 432 350 2471 65 . . . Kills 56 | . . . . 2 6 8 4 . 3 . 8 . . 1 4 20 . . . . Allies Corrupted 1 | . . . . . 1 . . . . . . . . . . . . . . . Allies Melted 1 | . . . . . . . . . . . . . . . 1 . . . . . Intel | -11 -10 -10 -10 -9 -8 -8 -7 -7 -7 -7 -6 -6 -6 -6 -5 -5 -5 -5 -5 -5 ------- Run | Scr Mat Min Exi Min Mat Sto Fac Was Fac Gar Fac Low Low Zio Pro Fac Ext Cet Arc Hub Robot Analysis Total 49 | . 9 1 . . 10 1 3 . 5 . 12 . . . . 7 . . . 1 Derelict Logs Recovered 8 | . . 1 . 1 . . . . . . . 2 1 1 2 . . . . . Drone Launches 26 | . . . . . . 16 . . . . 2 . . . . 8 . . . . Drone Recoveries . | . . . . . . . . . . . . . . . . . . . . . Exploration | -11 -10 -10 -10 -9 -8 -8 -7 -7 -7 -7 -6 -6 -6 -6 -5 -5 -5 -5 -5 -5 ------------- Run | Scr Mat Min Exi Min Mat Sto Fac Was Fac Gar Fac Low Low Zio Pro Fac Ext Cet Arc Hub Turns Passed 37760 | 121 1527 1459 1131 698 2897 2728 2603 477 5586 834 5185 1614 1374 401 2022 4213 824 927 323 816 Spaces Moved 19199 | 57 793 776 701 393 1438 1344 1303 249 2842 392 2597 885 783 192 965 2114 441 409 169 356 Core 13 | 11 2 . . . . . . . . . . . . . . . . . . . Treads 19186 | 46 791 776 701 393 1438 1344 1303 249 2842 392 2597 885 783 192 965 2114 441 409 169 356 Legs . | . . . . . . . . . . . . . . . . . . . . . Wheels . | . . . . . . . . . . . . . . . . . . . . . Hover . | . . . . . . . . . . . . . . . . . . . . . Flight . | . . . . . . . . . . . . . . . . . . . . . Fastest Speed 50 | 50 150 160 160 160 157 170 165 160 160 160 160 160 160 180 180 160 160 165 165 165 Average Speed 168 | 151 160 160 160 160 168 170 174 160 162 179 166 179 169 180 180 176 163 165 165 165 Slowest Speed 200 | 160 200 160 160 160 190 190 190 165 180 180 180 180 180 180 180 180 165 165 165 165 Overloaded Moves . | . . . . . . . . . . . . . . . . . . . . . Propulsion Burnouts . | . . . . . . . . . . . . . . . . . . . . . Robots Hopped . | . . . . . . . . . . . . . . . . . . . . . Cave-ins Triggered 3 | . 1 . . . . 1 . . . . . . . 1 . . . . . . Exploration Rate (%) 77 | 5 95 96 91 98 91 95 76 99 75 47 74 97 94 17 92 61 80 97 99 41 Regions Visited 20 Branch Regions 12 Pre-discovered Areas 25 | . 1 1 . 1 2 2 2 . 4 . 3 . . . 2 6 1 . . . Known Exits Taken 17 | 1 1 1 1 1 1 1 . . 1 . 1 1 1 1 1 1 1 1 1 . Unknown Exits Taken . | . . . . . . . . . . . . . . . . . . . . . Scrap Searched 9 | . . . . . . . . . . . . 3 2 . 4 . . . . . Spaces Dug 19 | . . . . . 2 6 . . 4 . 7 . . . . . . . . . Terrain Destroyed 1812 | . 53 . . 1 100 50 40 116 320 48 342 3 10 74 73 158 63 54 7 300 Melee 13 | . . . . . . 6 . . 4 . 3 . . . . . . . . . Projectile 800 | . . . . 1 69 44 25 10 139 11 136 3 10 16 73 71 43 52 7 90 AOE 999 | . 53 . . . 31 . 15 106 177 37 203 . . 58 . 87 20 2 . 210 Actions | -11 -10 -10 -10 -9 -8 -8 -7 -7 -7 -7 -6 -6 -6 -6 -5 -5 -5 -5 -5 -5 --------- Run | Scr Mat Min Exi Min Mat Sto Fac Was Fac Gar Fac Low Low Zio Pro Fac Ext Cet Arc Hub Total 22346 | 74 926 882 709 439 1727 1614 1495 279 3430 455 3099 900 806 211 1137 2439 487 550 204 483 Wait 901 | . . 25 4 1 86 121 16 2 171 3 90 . 2 . 68 167 13 34 32 66 Move 19178 | 56 792 775 700 392 1437 1343 1303 248 2841 389 2596 884 782 191 964 2113 440 408 168 356 Hop . | . . . . . . . . . . . . . . . . . . . . . Pick Up 33 | . 5 . . . 2 1 3 . 5 . 3 . . 1 2 8 1 1 . 1 Fast Attach 125 | 8 12 3 1 3 13 5 10 1 17 . 33 . 2 2 . 13 . 2 . . Attach 9 | . . . . . . . . . 1 . 3 . 1 . . 1 . 1 . 2 Detach 8 | . . . . . . . . . 3 . 1 . 2 . . 1 . 1 . . Swap 124 | . 6 1 2 2 17 9 8 1 32 8 20 2 2 1 2 1 1 7 . 2 Drop 144 | 1 13 4 1 4 15 6 12 2 20 . 33 . 1 3 1 22 2 2 . 2 Fire 970 | 9 90 56 . 14 81 54 70 24 169 24 132 4 8 13 40 65 23 48 4 42 Melee 46 | . . . 1 . . 18 . . 6 3 8 1 1 . 3 . . 5 . . Ram . | . . . . . . . . . . . . . . . . . . . . . Kick . | . . . . . . . . . . . . . . . . . . . . . Crush 3 | . . . . . . . . . 2 . . . . . . . . . . 1 Escape Stasis 18 | . . . . . . . 6 . . 10 . . . . . 2 . . . . Rewire 6 | . . . . . . 1 3 . . 2 . . . . . . . . . . Trap 333 | . 2 . . . 43 27 31 . 94 13 101 . . . . 22 . . . . Miscellaneous 448 | . 6 18 . 23 33 29 33 1 69 3 79 9 5 . 57 24 7 41 . 11 Route ------- -11/Scrapyard -10/Materials (discovered 5 exits: *Mat x3 / *Min x2) -10/Mines (discovered 3 exits: *Mat x2 / *Exi) -10/Exiles (discovered 2 exits: *Min x2) -9/Mines (discovered 2 exits: *Mat x2) -8/Materials (discovered 4 exits: *Fac x3 / *Sto) -8/Storage (discovered 2 exits: *Fac / Rec) -7/Factory (discovered 6 exits: *Fac x4 / *Low x2) -7/Waste -7/Factory (discovered 7 exits: *Fac x4 / *Low x2 / Gar) -7/Garrison (discovered 2 exits: *Fac x2) -6/Factory (discovered 6 exits: *Fac x4 / *Low x2) -6/Lower Caves -6/Lower Caves (discovered 2 exits: *Fac / *Zio) -6/Zion -5/Proximity Caves -5/Factory (discovered 7 exits: *Fac x3 / *Upp x2 / *Ext x2) -5/Extension (discovered 3 exits: *Fac x2 / *Cet) -5/Cetus (discovered 3 exits: *Fac x2 / *Arc) -5/Archives (discovered 3 exits: *Fac / *Hub x2) -5/Hub_04(d) (discovered 3 exits: *Fac x3) History --------- Turn | Location | Event 3 | -11/Scrapyard | Upgraded with Propulsion slot (x1) 3 | -11/Scrapyard | Upgraded with Utility slot (x1) 3 | -11/Scrapyard | Upgraded with Weapon slot (x1) 10 | -11/Scrapyard | Identified exit to Materials 10 | -11/Scrapyard | Discovered exit to Materials (range 15) 122 | -11/Scrapyard | Entered Materials 312 | -10/Materials | Identified exit to Mines 312 | -10/Materials | Discovered exit to Mines (range 16) 503 | -10/Materials | Build established: Hacker-Skirmisher 595 | -10/Materials | Crushed by falling debris 619 | -10/Materials | Core integrity fell below 50% 840 | -10/Materials | Identified exit to Materials 840 | -10/Materials | Discovered exit to Materials (range 16) 968 | -10/Materials | Reached level 2 971 | -10/Materials | Upgraded with Utility slot (x1) 1116 | -10/Materials | Discovered exit to Mines (range 15) 1271 | -10/Materials | Discovered exit to Materials (range 16) 1470 | -10/Materials | Discovered exit to Materials (range 11) 1649 | -10/Materials | Entered Mines 1659 | -10/Mines | Met a Derelict bent on vengeance 1738 | -10/Mines | Assembled infested the area 1875 | -10/Mines | Core integrity fell below 20% 1937 | -10/Mines | Destroyed 7 combat bots 2156 | -10/Mines | Found a damaged Exp. Sensor Array with a note attached 2192 | -10/Mines | Found Prototype Device 2192 | -10/Mines | Identified Exp. Sensor Array 2369 | -10/Mines | Learned location of Storage (-8) 2466 | -10/Mines | Discovered exit to Materials (range 16) 2668 | -10/Mines | Learned Materials stockpile data 2688 | -10/Mines | Discovered exit to Materials (range 15) 2708 | -10/Mines | Deemed a non-threat by the Exiles lab entrance 2708 | -10/Mines | Identified exit to Exiles 2708 | -10/Mines | Discovered exit to Exiles (range 5) 2815 | -10/Mines | Assisted by bots powering up and referring to "LRC-V3" 3108 | -10/Mines | Entered Exiles 3108 | -10/Exiles | Accompanied by 3 allies 3110 | -10/Exiles | Reached level 3 3134 | -10/Exiles | Identified exit to Mines 3134 | -10/Exiles | Discovered exit to Mines (range 14) 3171 | -10/Exiles | Met 8R-AWN 3195 | -10/Exiles | Met EX-HEX 3317 | -10/Exiles | Met EX-DEC 3383 | -10/Exiles | Met EX-BIN 3590 | -10/Exiles | Build established: Hacker-Mutant 3626 | -10/Exiles | Discovered exit to Mines (range 14) 3744 | -10/Exiles | Visited The Gauntlet 4239 | -10/Exiles | Entered Mines 4239 | -9/Mines | Accompanied by 3 allies 4312 | -9/Mines | Identified exit to Materials 4312 | -9/Mines | Discovered exit to Materials (range 16) 4461 | -9/Mines | Discovered exit to Materials (range 13) 4610 | -9/Mines | Reached level 4 4642 | -9/Mines | Met a Derelict shopkeep closing up shop 4644 | -9/Mines | Upgraded with Utility slot (x1) 4678 | -9/Mines | Build established: Hacker-Skirmisher 4719 | -9/Mines | Joined a pair of Derelicts in attacking an 0b10 outpost 4937 | -9/Mines | Entered Materials 4937 | -8/Materials | Accompanied by 3 allies 4939 | -8/Materials | Reached level 5 4939 | -8/Materials | Reached level 6 4942 | -8/Materials | Led the pair of lost Derelicts to an unsafe place 4942 | -8/Materials | Upgraded with Weapon slot (x1) 5011 | -8/Materials | Repaired Med. Armor Plating 5220 | -8/Materials | Reached level 7 5284 | -8/Materials | Upgraded with Weapon slot (x1) 5387 | -8/Materials | Build established: Hacker-Gunner 5417 | -8/Materials | Reached level 8 5500 | -8/Materials | Identified exit to Factory 5500 | -8/Materials | Discovered exit to Factory (range 15) 5705 | -8/Materials | Reached level 9 6366 | -8/Materials | Reached level 10 6374 | -8/Materials | Discovered exit to Factory (range 19) 7416 | -8/Materials | Discovered exit to Factory (range 17) 7450 | -8/Materials | Identified exit to Storage 7450 | -8/Materials | Discovered exit to Storage (range 20) 7500 | -8/Materials | Repaired Kinecellerator 7551 | -8/Materials | Reached level 11 7834 | -8/Materials | Entered Storage 7846 | -8/Storage | Assisted by bots powering up and referring to "LRC-V3" 7950 | -8/Storage | Reached level 12 8149 | -8/Storage | Build established: Commander-Gunner 8441 | -8/Storage | Garrison activated, responded to threat 8463 | -8/Storage | Build established: Hacker-Gunner 8615 | -8/Storage | Reached level 13 8627 | -8/Storage | Crushed by falling debris 8765 | -8/Storage | Repaired Hrd. Medium Armor Plating 9084 | -8/Storage | Discovered exit to Factory (range 19) 9450 | -8/Storage | Identified exit to Recycling 9450 | -8/Storage | Discovered exit to Recycling (range 15) 10562 | -8/Storage | Entered Factory 10562 | -7/Factory | Accompanied by 14 allies 10564 | -7/Factory | Reached level 14 10793 | -7/Factory | Identified exit to Factory 10793 | -7/Factory | Discovered exit to Factory (range 109) 10855 | -7/Factory | Identified exit to Lower Caves 10855 | -7/Factory | Discovered exit to Lower Caves (range 77) 10958 | -7/Factory | Discovered exit to Lower Caves (range 152) 11266 | -7/Factory | Reached level 15 11481 | -7/Factory | Discovered exit to Factory (range 14) 12320 | -7/Factory | Discovered exit to Factory (range 20) 12795 | -7/Factory | Reached level 16 12942 | -7/Factory | Fabricated B-48 Gladiator? 13030 | -7/Factory | Discovered exit to Factory (range 14) 13074 | -7/Factory | Fabricated B-48 Gladiator? 13165 | -7/Factory | Manually triggered Chute Trap 13165 | -7/Factory | Sucked down chute 13165 | -7/Factory | Entered Waste 13213 | -7/Waste | Spotted C-40 Crusher 13229 | -7/Waste | Destroyed C-40 Crusher 13232 | -7/Waste | Spotted C-40 Crusher 13236 | -7/Waste | Destroyed C-40 Crusher 13247 | -7/Waste | Spotted C-40 Crusher 13261 | -7/Waste | Spotted C-40 Crusher 13261 | -7/Waste | Spotted C-40 Crusher 13267 | -7/Waste | Destroyed C-40 Crusher 13270 | -7/Waste | 6 allies followed down the chute 13288 | -7/Waste | Destroyed C-40 Crusher 13291 | -7/Waste | Destroyed C-40 Crusher 13318 | -7/Waste | Spotted C-40 Crusher 13327 | -7/Waste | Destroyed C-40 Crusher 13351 | -7/Waste | Identified exit to Factory 13351 | -7/Waste | Discovered exit to Factory (range 23) 13621 | -7/Waste | Build established: Hacker-Mutant 13642 | -7/Waste | Entered Factory 13642 | -7/Factory | Accompanied by 1 ally 14022 | -7/Factory | Garrison activated, responded to threat 14025 | -7/Factory | Build established: Hacker-Gunner 14303 | -7/Factory | Upgraded with Weapon slot (x1) 14374 | -7/Factory | Reached level 17 14484 | -7/Factory | Garrison activated, responded to threat 15105 | -7/Factory | Discovered exit to Lower Caves (range 15) 15569 | -7/Factory | Build established: Hacker-Assassin 15988 | -7/Factory | Discovered exit to Factory (range 14) 15995 | -7/Factory | Build established: Hacker-Gunner 16506 | -7/Factory | Fabricated D-53 Grenadier (x1) 16566 | -7/Factory | Fabricated D-53 Grenadier (x1) 16731 | -7/Factory | Local fabrication network quarantined 17758 | -7/Factory | Discovered exit to Factory (range 21) 17967 | -7/Factory | Reached level 18 18113 | -7/Factory | Discovered exit to Lower Caves (range 16) 18135 | -7/Factory | Build established: Hacker-Assassin 18181 | -7/Factory | Discovered exit to Factory (range 18) 18921 | -7/Factory | Build established: Hacker-Gunner 18976 | -7/Factory | Discovered exit to Factory (range 11) 19219 | -7/Factory | Identified exit to Garrison 19228 | -7/Factory | Entered Garrison 19274 | -7/Garrison | Triggered checkpoint 19313 | -7/Garrison | Garrison Relay disabled 19402 | -7/Garrison | Triggered checkpoint 19405 | -7/Garrison | Triggered checkpoint 19420 | -7/Garrison | Triggered checkpoint 19438 | -7/Garrison | Triggered checkpoint 19466 | -7/Garrison | Destroyed 16 combat bots 19690 | -7/Garrison | Triggered checkpoint 19723 | -7/Garrison | Garrison Relay disabled 19796 | -7/Garrison | Discovered exit to Factory (range 20) 19832 | -7/Garrison | Attempted to access garrison exit controls, blocked by remote lockdown 19988 | -7/Garrison | Discovered exit to Factory (range 18) 20043 | -7/Garrison | Installed Relay Interface Framework 20062 | -7/Garrison | Entered Factory 20064 | -6/Factory | Reached level 19 20270 | -6/Factory | Garrison activated, responded to threat 20271 | -6/Factory | Core integrity fell below 50% 20412 | -6/Factory | First assault squad dispatched 20952 | -6/Factory | Reached level 20 21164 | -6/Factory | Identified exit to Factory 21164 | -6/Factory | Discovered exit to Factory (range 18) 21221 | -6/Factory | Fabricated Y-45 Defender? 21640 | -6/Factory | Found Prototype Processor 21640 | -6/Factory | Identified Exp. Targeting Computer 21676 | -6/Factory | Found Exp. Targeting Computer 21914 | -6/Factory | Discovered exit to Factory (range 15) 21949 | -6/Factory | Garrison activated, responded to threat 21961 | -6/Factory | Discovered exit to Factory (range 18) 23244 | -6/Factory | Identified exit to Lower Caves 23534 | -6/Factory | Fabricated Y-45 Defender? 23782 | -6/Factory | Reached level 21 23787 | -6/Factory | Upgraded with Weapon slot (x1) 23966 | -6/Factory | Fabricated Disruptor Cannon (x1) 24044 | -6/Factory | Fabricated H-66 Slayer? 24082 | -6/Factory | Build established: Hacker-Assassin 24649 | -6/Factory | Discovered exit to Factory (range 14) 24908 | -6/Factory | Spotted B-75 Beast 24938 | -6/Factory | Destroyed B-75 Beast 25247 | -6/Factory | Entered Lower Caves 25272 | -6/Lower Caves | Attracted the attention of an 0b10 checkpoint 25352 | -6/Lower Caves | Identified exit to Lower Caves 25483 | -6/Lower Caves | Encountered a Warlord checkpoint 26861 | -6/Lower Caves | Entered another Lower Caves area 26862 | -6/Lower Caves | Encountered a Warlord checkpoint 26907 | -6/Lower Caves | Discovered exit to Factory (range 11) 27614 | -6/Lower Caves | Learned 8 Factory zone layouts 27860 | -6/Lower Caves | Identified exit to Zion 27860 | -6/Lower Caves | Discovered exit to Zion (range 19) 28235 | -6/Lower Caves | Entered Zion 28235 | -6/Zion | Accompanied by 1 ally 28295 | -6/Zion | Given A8's code to call for help 28339 | -6/Zion | Identified exit to Proximity Caves 28339 | -6/Zion | Discovered exit to Proximity Caves (range 20) 28399 | -6/Zion | Learned Factory emergency access door positions 28517 | -6/Zion | RIF detected upon attempting to enter Zion 28517 | -6/Zion | Attacked by Zionites 28517 | -6/Zion | Spotted S9-RHI(B) 28517 | -6/Zion | Spotted M7-I4I(B) 28533 | -6/Zion | Destroyed S9-RHI(B) 28537 | -6/Zion | Destroyed M7-I4I(B) 28586 | -6/Zion | CL-ANK came to Zion's defense 28605 | -6/Zion | Crushed by falling debris 28611 | -6/Zion | Destroyed CL-ANK 28636 | -6/Zion | Entered Proximity Caves 28636 | -5/Proximity Caves | Accompanied by 1 ally 28821 | -5/Proximity Caves | Build established: Hacker-Executioner 29118 | -5/Proximity Caves | Reached level 22 29214 | -5/Proximity Caves | Discovered exit to Factory (range 16) 29270 | -5/Proximity Caves | Learned location of Warlord (-5) 29462 | -5/Proximity Caves | Build established: Hacker-Assassin 29829 | -5/Proximity Caves | Received a Behemoth hack from an annoying Tinkerer 30252 | -5/Proximity Caves | Attracted the attention of an 0b10 outpost 30303 | -5/Proximity Caves | Destroyed 7 combat bots 30658 | -5/Proximity Caves | Entered Factory 30660 | -5/Factory | Reached level 23 30797 | -5/Factory | Identified exit to Factory 30797 | -5/Factory | Discovered exit to Factory (range 10) 31014 | -5/Factory | Identified exit to Extension 31014 | -5/Factory | Discovered exit to Extension (range 19) 31166 | -5/Factory | Repaired Imp. System Backup Module 31413 | -5/Factory | Fabricated H-66 Slayer (x2) 31508 | -5/Factory | Identified exit to Upper Caves 31530 | -5/Factory | Fabricated H-66 Slayer? 31631 | -5/Factory | Fabricated H-66 Slayer? 31836 | -5/Factory | Local fabrication network quarantined 31840 | -5/Factory | Discovered exit to Factory (range 16) 32278 | -5/Factory | Found Hvy. Reactive Plating 32496 | -5/Factory | Build established: Hacker-Executioner 32833 | -5/Factory | Reached level 24 32836 | -5/Factory | Upgraded with Propulsion slot (x1) 33119 | -5/Factory | Discovered exit to Factory (range 18) 33548 | -5/Factory | Spotted B-75 Beast 33562 | -5/Factory | Destroyed B-75 Beast 34871 | -5/Factory | Entered Extension 34871 | -5/Extension | Accompanied by 2 allies 34967 | -5/Extension | Energy Cycler disabled 34968 | -5/Extension | Rescued a captive Derelict 34968 | -5/Extension | Rescued a captive Derelict 34969 | -5/Extension | Rescued a captive Derelict 34970 | -5/Extension | Rescued a captive Derelict 34970 | -5/Extension | Rescued a captive Derelict 34972 | -5/Extension | Rescued a captive Derelict 34973 | -5/Extension | Rescued a captive Derelict 35248 | -5/Extension | Spotted B-75 Beast 35253 | -5/Extension | Destroyed B-75 Beast 35285 | -5/Extension | Discovered exit to Factory (range 19) 35287 | -5/Extension | Spotted B-75 Beast 35292 | -5/Extension | Destroyed B-75 Beast 35327 | -5/Extension | Extracted ID and sensor layout for unrecognized location from A7's data core 35330 | -5/Extension | Destroyed 7 combat bots 35671 | -5/Extension | Discovered exit to Factory (range 17) 35681 | -5/Extension | Identified exit to Cetus 35681 | -5/Extension | Discovered exit to Cetus (range 8) 35695 | -5/Extension | Entered Cetus 35715 | -5/Cetus | Spotted Cetus Guard 35715 | -5/Cetus | Spotted Cetus Guard 35715 | -5/Cetus | Spotted Cetus Guard 35715 | -5/Cetus | Spotted Cetus Guard 35725 | -5/Cetus | Destroyed Cetus Guard 35732 | -5/Cetus | Destroyed Cetus Guard 35741 | -5/Cetus | Destroyed Cetus Guard 35745 | -5/Cetus | Destroyed Cetus Guard 35793 | -5/Cetus | Cetus Manufacturing Module disabled 35795 | -5/Cetus | Core integrity fell below 50% 35872 | -5/Cetus | Discovered exit to Factory (range 23) 36073 | -5/Cetus | Identified exit to Archives 36073 | -5/Cetus | Discovered exit to Archives (range 23) 36079 | -5/Cetus | Destroyed 7 combat bots 36169 | -5/Cetus | Found a strange terminal 36246 | -5/Cetus | Spotted Cetus Guard 36246 | -5/Cetus | Spotted Cetus Guard 36246 | -5/Cetus | Spotted Cetus Guard 36246 | -5/Cetus | Spotted Cetus Guard 36263 | -5/Cetus | Reached level 25 36285 | -5/Cetus | Upgraded with Weapon slot (x1) 36418 | -5/Cetus | Destroyed Cetus Guard 36422 | -5/Cetus | Destroyed Cetus Guard 36425 | -5/Cetus | Destroyed Cetus Guard 36428 | -5/Cetus | Destroyed Cetus Guard 36440 | -5/Cetus | Discovered exit to Factory (range 23) 36460 | -5/Cetus | Met Revision 17 36622 | -5/Cetus | Entered Archives 36682 | -5/Archives | Discovered exit to Factory (range 20) 36714 | -5/Archives | Unable to access archive contents 36721 | -5/Archives | Identified exit to Hub_04(d) 36721 | -5/Archives | Discovered exit to Hub_04(d) (range 23) 36739 | -5/Archives | Unable to access archive contents 36758 | -5/Archives | Discovered exit to Hub_04(d) (range 17) 36765 | -5/Archives | Unable to access archive contents 36782 | -5/Archives | Unable to access archive contents 36945 | -5/Archives | Entered Hub_04(d) 37095 | -5/Hub_04(d) | Discovered exit to Factory (range 22) 37366 | -5/Hub_04(d) | Discovered exit to Factory (range 11) 37679 | -5/Hub_04(d) | Discovered exit to Factory (range 20) 37699 | -5/Hub_04(d) | Network Hub disabled 37705 | -5/Hub_04(d) | Spotted Lightning 37708 | -5/Hub_04(d) | Spotted Lightning 37708 | -5/Hub_04(d) | Spotted Lightning 37708 | -5/Hub_04(d) | Spotted Lightning 37708 | -5/Hub_04(d) | Spotted Lightning 37709 | -5/Hub_04(d) | Spotted Lightning 37715 | -5/Hub_04(d) | Spotted Lightning 37719 | -5/Hub_04(d) | System corruption reached 10% 37719 | -5/Hub_04(d) | Destroyed Lightning 37723 | -5/Hub_04(d) | Destroyed Lightning 37727 | -5/Hub_04(d) | Destroyed Lightning 37735 | -5/Hub_04(d) | Destroyed Lightning 37738 | -5/Hub_04(d) | Destroyed Lightning 37740 | -5/Hub_04(d) | Core integrity fell below 20% 37759 | -5/Hub_04(d) | Destroyed 8 combat bots 37761 | -5/Hub_04(d) | Destroyed by Lightning with EMDS Last Messages --------------- 37740_ Penetrated by Slug. 37741_ Penetrated by EMDS Slug. 37742_ The unstable cave ceiling collapses. 37742_ Lightning knocked back. 37744_ Penetrated by Slug. 37746_ Penetrated by EMDS Slug. 37747_ Penetrated by Slug. 37748_ The unstable cave ceiling collapses. 37748_ Penetrated by EMDS Slug. 37749_ System corrupted: Heat flow error (+100). 37749_ Penetrated by Slug. 37750_ The unstable cave ceiling collapses. 37751_ Penetrated by Slug. 37753_ EMDS Slug penetrates Earth. 37753_ Penetrated by Slug. 37754_ Penetrated by EMDS Slug. 37754_ K-01 Serf collects debris. 37755_ Ended siege mode. 37759_ Penetrated by EMDS Slug. [Achievement: Punisher] Map ----- +----------------------------------------------------+ | ###### """ """ ## ############## #????????????? | | ###### ## ############## #????????????? | | ###### """ """ =## # ###########?????????????? | | ###### ! # # # ####### ?? ??????????? | | ######= " *"# ##;;#;;####### ? ???????????? | | = + *= | ; % + ####### ""???????????? | | ######% # ## ####### ?????????? | | ######[] =i ; # # ##### """ ????????? | | ############k";;""; ? / ???????? | | ########## ";;"; # #########/###??????? | | ########## = ! !% # ####### ###?????? | | ########## %< = % h % ###### ? ?????? | | ########## [ ###; ######### ? ????? | | ########### ###### h ##### ####????? | | ###########+###### # ##############???? | | ######### # % #;###############??? | | ###### !! """ % #??? | | ## ######] ! ;#] #??? | | ################ | # #??? | | ######## # # ; ! #??? | | """ """ ######## # ;; #??? | | "T" ########i# ;=! ?* " " | | !!! " " ###### "A %! ! % % " # | | !!! ##T"#### # ## ; ;################"??? | | !!! """ ## "#### ###### ; ; ###########??? | | " ### @; ; ###### ??? | | # # ;;;;;;;;;;;;; ###### ??? | | +######## ;;;;;; ; ##### ??? | | ; % ; ##### ??? | | #########" ###;###;;; ; ##### ???? | | #########"T# ; ; ; ##### "???? | | +############# ; ; ; ###### ????? | | ######### ; ; ; ##### ???? | | " ######### ; ; ; ###### ????? | | ! " ######### # ; [ ; ###### ???? | | ! " ######### # ; ; ######??????? | | ! ################ ; ; ######?#????? | | " ############### ;;;; ;;;;;;; #####???????? | | " ############### ######??????? | | " ############### ###?#???????? | | ####################### #########?##????????? | | ############################ ########???#????????? | | ########################?### #####?###???????????? | | ###############################?##?##????????????? | | #########################?##?######?#????????????? | | #################??########?#?####???????????????? | | ##################?#####?##????#?????????????????? | | #################?#######??#?????????????????????? | | #######?######???????????????????????????????????? | | ?#?##?#?#?###????????????????????????????????????? | +----------------------------------------------------+ Best States ------------- Heat Dissipation 103 Coolant Potential 50 Energy Generation 30 Energy Capacity 500 Matter Stores 600 Matter Capacity 600 Sight Range 23 Robot Scan Range 50 Terrain Scan Range 20 Terrain Scan Density 710 Armor Coverage 450 Resistance: KI 65 Resistance: TH 55 Resistance: EX 55 Resistance: EM 35 Resistance: I 35 Resistance: S 35 Resistance: P 35 Evasion (%) 40 Targeting Accuracy 24 Target Analysis 6 Core Analysis 8 Recoil Reduction 3 Kinecelleration 40 Offensive Hacking 40 Defensive Hacking 10 Item Schematics ----------------- Ion Engine | -10/Mines | Hacked Datajack | -8/Materials | Scanalyzed Hrd. Light Armor Plating | -8/Materials | Extracted Cesium-ion Thruster | -8/Materials | Extracted Imp. Heat Sink | -8/Storage | Hacked EM Shield | -8/Storage | Hacked Nuclear Core | -8/Storage | Hacked Deuterium Engine | -8/Storage | Hacked Gatling Laser | -8/Storage | Hacked Imp. Datajack | -8/Storage | Hacked Mni. Grenade Launcher | -8/Storage | Hacked Grenade Launcher | -8/Storage | Hacked Arm. Treads | -8/Storage | Hacked Hvy. Ion Engine | -8/Storage | Hacked Adv. Terrain Scanner | -8/Storage | Hacked Adv. Targeting Computer | -8/Storage | Hacked Hrd. Medium Armor Plating | -8/Storage | Hacked Hvy. Particle Cannon | -8/Storage | Hacked Shock Bomb Launcher | -8/Storage | Hacked Imp. Focal Shield | -7/Factory | Hacked Arm. Medium Treads | -7/Factory | Hacked Imp. Deuterium Engine | -7/Factory | Hacked Hvy. Rocket Launcher | -7/Factory | Scanalyzed Chainsword | -7/Factory | Scanalyzed Assault Cannon | -7/Factory | Scanalyzed Com. Wheel | -7/Factory | Extracted Flak Gun | -7/Factory | Extracted Katana | -7/Factory | Extracted Insulated Plating | -7/Factory | Extracted Coolant Injector | -7/Factory | Hacked Imp. Launcher Guidance Computer | -6/Factory | Hacked Disruptor Cannon | -6/Factory | Hacked Hyp. Mass Driver | -6/Factory | Hacked Launcher Loader | -6/Factory | Hacked Remote Datajack | -6/Factory | Hacked System Backup Module | -6/Factory | Scanalyzed Imp. Targeting Computer | -6/Factory | Extracted Prc. Rocket Launcher | -6/Factory | Extracted Gauss Cannon | -6/Factory | Extracted Lrn. Missile Launcher | -6/Factory | Extracted Cld. Pulse Rifle | -6/Factory | Extracted Phase Cannon | -6/Factory | Extracted Proton Missile Launcher | -6/Factory | Extracted Power Shielding | -6/Factory | Extracted Imp. Cooling System | -6/Factory | Extracted Imp. Gravmag System | -6/Factory | Extracted Imp. Remote Datajack | -6/Factory | Hacked Transmission Jammer | -6/Factory | Extracted Lgt. Fission Core | -6/Factory | Extracted Reaction Control System | -5/Factory | Hacked Imp. System Backup Module | -5/Factory | Scanalyzed Phasing Sabre | -5/Factory | Scanalyzed Hardcell Cannon | -5/Factory | Hacked Point Defense Array | -5/Factory | Hacked Imp. Heavy Treads | -5/Factory | Hacked Adv. Datajack | -5/Factory | Hacked Biometal Medium Treads | -5/Factory | Hacked Exp. Terrain Scanner | -5/Factory | Hacked Triangulator | -5/Factory | Hacked Tri-rail Accelerator | -5/Factory | Scanalyzed Plasma Sword | -5/Factory | Extracted Antigrav System | -5/Factory | Extracted Arm. Heavy Treads | -5/Factory | Hacked Lgt. Particle Reactor | -5/Factory | Hacked F-cell Engine | -5/Factory | Hacked Med. Reactive Plating | -5/Extension | Hacked Adv. Cryofiber Web | -5/Hub_04(d) | Hacked Antimatter Reactor | -5/Hub_04(d) | Hacked Adv. Integration Mediator | -5/Hub_04(d) | Hacked Corruption Screen | -5/Hub_04(d) | Hacked Robot Schematics ------------------ G-47 Trooper | -8/Storage | Hacked H-55 Commando | -8/Storage | Hacked D-53 Grenadier | -8/Storage | Hacked G-34 Mercenary | -8/Storage | Hacked Y-45 Defender | -8/Storage | Hacked L-41 Fighter | -7/Factory | Hacked H-66 Slayer | -6/Factory | Hacked Y-64 Sentinel | -5/Factory | Hacked G-50 Soldier | -5/Factory | Hacked X-72 Disruptor | -5/Factory | Hacked B-60 Warrior | -5/Factory | Hacked S-27 Virus | -5/Factory | Hacked Y-54 Guardian | -5/Factory | Hacked E-15 Imp | -5/Extension | Hacked I-47 Archangel | -5/Cetus | Hacked L-31 Rogue | -5/Cetus | Hacked Fabricated ------------ B-48 Gladiator | x3 | -7/Factory | Preloaded B-48 Gladiator | x3 | -7/Factory | Preloaded D-53 Grenadier | x1 | -7/Factory D-53 Grenadier | x1 | -7/Factory Y-45 Defender | x2 | -6/Factory Y-45 Defender | x2 | -6/Factory Disruptor Cannon | x1 | -6/Factory H-66 Slayer | x2 | -6/Factory H-66 Slayer | x2 | -5/Factory H-66 Slayer | x2 | -5/Factory H-66 Slayer | x2 | -5/Factory Alien Tech Used ----------------- None Achievements -------------- Hehehe Left-hand Path Punisher Treasure Hunter Wheee! Challenges ------------ None RPGLIKE | -11 -10 -10 -10 -9 -8 -8 -7 -7 -7 -7 -6 -6 -6 -6 -5 -5 -5 -5 -5 -5 --------- Run | Scr Mat Min Exi Min Mat Sto Fac Was Fac Gar Fac Low Low Zio Pro Fac Ext Cet Arc Hub Levels Raised 24 | . 1 . 1 1 7 2 3 . 2 . 3 . . . 1 2 . 1 . . XP Earned 42759 | 6000 1825 1150 200 1635 10613 3114 4245 67 3170 593 3769 153 176 82 1853 2511 467 525 101 510 XP Spent 41930 | 4565 2920 . . 2950 9355 4070 2650 . 4200 600 4640 . . . 1300 2200 . 2000 . 480 Upgrades 99 | 21 11 . . 6 22 7 3 . 5 3 7 . . . 2 3 . 1 . 8 Propulsion Slot 2 | 1 . . . . . . . . . . . . . . . 1 . . . . Utility Slot 3 | 1 1 . . 1 . . . . . . . . . . . . . . . . Weapon Slot 6 | 1 . . . . 2 . . . 1 . 1 . . . . . . 1 . . Core Integrity 8 | . . . . . . . . . . . . . . . . . . . . 8 Heat Dissipation 13 | . 4 . . . 7 1 . . . . 1 . . . . . . . . . Energy Generation 1 | . . . . . . . . . . . . . . . . 1 . . . . Matter Storage 6 | . . . . . 6 . . . . . . . . . . . . . . . Mass Support 1 | . . . . . . . . . . . 1 . . . . . . . . . Inventory Capacity 5 | 1 . . . . 1 . 1 . 1 . 1 . . . . . . . . . Sight Range 7 | . . . . 2 . 4 1 . . . . . . . . . . . . . Sensor Range 10 | 10 . . . . . . . . . . . . . . . . . . . . Terrain Scan Density 7 | 7 . . . . . . . . . . . . . . . . . . . . Ranged Accuracy 4 | . 1 . . 1 . . 1 . 1 . . . . . . . . . . . Hack Attack % 4 | . 1 . . . . 1 . . 1 . 1 . . . . . . . . . Hack Defense % 2 | . . . . . . 1 . . 1 . . . . . . . . . . . KI Resistance % 4 | . 3 . . 1 . . . . . . . . . . . . . . . . TH Resistance % 4 | . 1 . . . 3 . . . . . . . . . . . . . . . EX Resistance % 4 | . . . . . . . . . . 3 1 . . . . . . . . . KI Damage % 4 | . . . . 1 3 . . . . . . . . . . . . . . . TH Damage % 4 | . . . . . . . . . . . 1 . . . 2 1 . . . . Protomatter Created 6686 | . 41 81 . 80 811 223 414 390 1286 178 994 61 155 51 415 780 56 373 . 297 Integrity Restored 7916 | . 123 294 . 496 494 381 622 12 1163 60 1432 180 81 . 1150 254 168 869 . 137 Core 5395 | . 123 294 . 490 261 352 306 12 769 60 828 77 36 . 772 199 168 561 . 87 Parts 2521 | . . . . 6 233 29 316 . 394 . 604 103 45 . 378 55 . 308 . 50 Protomatter Decayed 5666 | . . 281 . 93 856 304 242 193 957 47 711 . 229 . 145 1151 213 43 . 201 Game ------ Seed FieldNodeSplitter Manual? 1 Play Time 06:34:52 Cumulative 108.9 hours Start 2020.04.03 @ 03:26:59 End 2020.04.04 @ 01:23:22 Sessions 5 Manual Loads 0 Difficulty Explorer Special Mode Winter2019/RPGLIKE Game No. 20 Rogue 1 Adventurer 2 Explorer 17 Win Type - Total 8 Types 8/0/0/0/0/0/0 Lore% 58 Gallery% 73 Achievement% 58 Wizard Run 0 Options --------- ASCII 0 Keyboard 0 Movement Mouse Keybinds 0 Fullscreen 2 Font 24/Terminus Map View 76x50 Tactical HUD 1 Map Filters NONE Filters NONE Steam 1 RUN: 933a6fea-fd28-420c-8c2f-271cf3aa2593